[Event "November 21 Early 2023"]
[Site "https://www.chess.com"]
[Date "2023.11.21"]
[Round "9"]
[White "Rustemov, Alexander"]
[Black "Shoker, Samy"]
[Result "0-1"]
[Board "19"]
[TimeControl "180+1"]
[WhiteFideId "4119002"]
[BlackFideId "627143"]
[WhiteElo "2895"]
[BlackElo "2475"]
[WhiteTeam "RUS"]
[BlackTeam "EGY"]
[WhiteClock "0:00:00"]
[BlackClock "0:00:49"]

1. d4 {[%clk 0:03:00]}  Nf6 {[%clk 0:02:58]} 2. c4 {[%clk 0:03:01]}  d6 {[%clk 0:02:59]} 3. Nf3 {[%clk 0:03:00]}  g6 {[%clk 0:02:58]} 4. g3 {[%clk 0:03:00]}  Bg7 {[%clk 0:02:58]} 5. Bg2 {[%clk 0:03:00]}  O-O {[%clk 0:02:58]} 6. Nc3 {[%clk 0:03:00]}  Nc6 {[%clk 0:02:58]} 7. O-O {[%clk 0:03:00]}  a6 {[%clk 0:02:59]} 8. h3 {[%clk 0:03:00]}  Rb8 {[%clk 0:02:58]} 9. e4 {[%clk 0:03:01]}  Nd7 {[%clk 0:02:59]} 10. Be3 {[%clk 0:02:53]}  Na5 {[%clk 0:02:58]} 11. b3 {[%clk 0:02:51]}  b5 {[%clk 0:02:57]} 12. cxb5 {[%clk 0:02:50]}  axb5 {[%clk 0:02:58]} 13. Rc1 {[%clk 0:02:49]}  b4 {[%clk 0:02:54]} 14. Na4 {[%clk 0:02:39]}  Ba6 {[%clk 0:02:50]} 15. Re1 {[%clk 0:02:38]}  Bb5 {[%clk 0:02:50]} 16. Nb2 {[%clk 0:02:36]}  c5 {[%clk 0:02:50]} 17. Qd2 {[%clk 0:02:28]}  Nc6 {[%clk 0:02:23]} 18. Red1 {[%clk 0:02:20]}  cxd4 {[%clk 0:02:19]} 19. Nxd4 {[%clk 0:02:19]}  Nxd4 {[%clk 0:02:19]} 20. Bxd4 {[%clk 0:02:20]}  Bxd4 {[%clk 0:02:19]} 21. Qxd4 {[%clk 0:02:19]}  Qa5 {[%clk 0:02:17]} 22. Ra1 {[%clk 0:02:09]}  Rfc8 {[%clk 0:02:14]} 23. Rd2 {[%clk 0:02:04]}  Rc3 {[%clk 0:02:10]} 24. Nd1 {[%clk 0:02:00]}  Rc7 {[%clk 0:02:05]} 25. Ne3 {[%clk 0:02:00]}  Nf6 {[%clk 0:01:56]} 26. f4 {[%clk 0:01:58]}  Qa7 {[%clk 0:01:52]} 27. Qxa7 {[%clk 0:01:57]}  Rxa7 {[%clk 0:01:53]} 28. e5 {[%clk 0:01:57]}  dxe5 {[%clk 0:01:50]} 29. fxe5 {[%clk 0:01:57]}  Nd7 {[%clk 0:01:50]} 30. Nd5 {[%clk 0:01:46]}  Nxe5 {[%clk 0:01:50]} 31. Nxb4 {[%clk 0:01:46]}  Bd7 {[%clk 0:01:40]} 32. Rc1 {[%clk 0:01:43]}  Rxb4 {[%clk 0:01:39]} 33. Rc3 {[%clk 0:01:13]}  Kg7 {[%clk 0:01:33]} 34. Kf2 {[%clk 0:01:08]}  h5 {[%clk 0:01:33]} 35. Ke3 {[%clk 0:01:05]}  Bf5 {[%clk 0:01:30]} 36. Rc5 {[%clk 0:00:40]}  f6 {[%clk 0:01:28]} 37. Rcd5 {[%clk 0:00:33]}  Bb1 {[%clk 0:01:24]} 38. R5d4 {[%clk 0:00:20]}  Rxd4 {[%clk 0:01:22]} 39. Rxd4 {[%clk 0:00:21]}  Bxa2 {[%clk 0:01:21]} 40. b4 {[%clk 0:00:20]}  Ra3+ {[%clk 0:01:18]} 41. Kf2 {[%clk 0:00:19]}  Rb3 {[%clk 0:01:16]} 42. Bf1 {[%clk 0:00:12]}  Rb2+ {[%clk 0:01:13]} 43. Ke3 {[%clk 0:00:13]}  Rb1 {[%clk 0:01:11]} 44. Be2 {[%clk 0:00:12]}  Be6 {[%clk 0:01:11]} 45. h4 {[%clk 0:00:11]}  Rb3+ {[%clk 0:01:10]} 46. Kf2 {[%clk 0:00:11]}  Bg4 {[%clk 0:01:10]} 47. Bf1 {[%clk 0:00:10]}  Rb2+ {[%clk 0:01:10]} 48. Ke3 {[%clk 0:00:10]}  Rb3+ {[%clk 0:01:09]} 49. Kf2 {[%clk 0:00:10]}  g5 {[%clk 0:01:09]} 50. b5 {[%clk 0:00:09]}  gxh4 {[%clk 0:01:08]} 51. gxh4 {[%clk 0:00:10]}  Nf3 {[%clk 0:01:07]} 52. Rd8 {[%clk 0:00:09]}  Nxh4 {[%clk 0:01:06]} 53. Rb8 {[%clk 0:00:09]}  Nf5 {[%clk 0:01:05]} 54. b6 {[%clk 0:00:09]}  Rb2+ {[%clk 0:01:06]} 55. Kg1 {[%clk 0:00:09]}  Nd6 {[%clk 0:01:06]} 56. Bg2 {[%clk 0:00:07]}  h4 {[%clk 0:01:05]} 57. Bc6 {[%clk 0:00:06]}  h3 {[%clk 0:01:01]} 58. b7 {[%clk 0:00:07]}  Nxb7 {[%clk 0:00:53]} 59. Rxb7 {[%clk 0:00:06]}  Rxb7 {[%clk 0:00:51]} 60. Bxb7 {[%clk 0:00:07]}  Kh6 {[%clk 0:00:51]} 61. Kh2 {[%clk 0:00:07]}  Kg5 {[%clk 0:00:52]} 62. Kg3 {[%clk 0:00:07]}  f5 {[%clk 0:00:52]} 63. Kh2 {[%clk 0:00:07]}  f4 {[%clk 0:00:53]} 64. Be4 {[%clk 0:00:06]}  e5 {[%clk 0:00:54]} 65. Bd5 {[%clk 0:00:05]}  Kh4 {[%clk 0:00:54]} 66. Be4 {[%clk 0:00:04]}  Be6 {[%clk 0:00:54]} 67. Bf3 {[%clk 0:00:02]}  Bf5 {[%clk 0:00:54]} 68. Be2 {[%clk 0:00:02]}  e4 {[%clk 0:00:54]} 69. Bf1 {[%clk 0:00:02]}  f3 {[%clk 0:00:52]} 70. Bc4 {[%clk 0:00:02]}  e3 {[%clk 0:00:51]} 71. Bb5 {[%clk 0:00:02]}  e2 {[%clk 0:00:49]} 72. Bxe2 {[%clk 0:00:00]}  fxe2 {[%clk 0:00:49]} 0-1

[Event "November 21 Early 2023"]
[Site "https://www.chess.com"]
[Date "2023.11.21"]
[Round "9"]
[White "Licznerski, Lukasz"]
[Black "Piesik, Piotr"]
[Result "0-1"]
[Board "21"]
[TimeControl "180+1"]
[WhiteFideId "1179250"]
[BlackFideId "1136194"]
[WhiteElo "2436"]
[BlackElo "2309"]
[WhiteTeam "POL"]
[BlackTeam "CZE"]
[WhiteClock "0:00:40"]
[BlackClock "0:00:53"]

1. e4 {[%clk 0:03:00]}  e6 {[%clk 0:02:58]} 2. d4 {[%clk 0:02:46]}  d5 {[%clk 0:02:57]} 3. Nd2 {[%clk 0:02:46]}  c5 {[%clk 0:02:56]} 4. Ngf3 {[%clk 0:02:46]}  cxd4 {[%clk 0:02:55]} 5. Nxd4 {[%clk 0:02:44]}  Nc6 {[%clk 0:02:55]} 6. Bb5 {[%clk 0:02:44]}  Bd7 {[%clk 0:02:55]} 7. Nxc6 {[%clk 0:02:45]}  bxc6 {[%clk 0:02:54]} 8. Bd3 {[%clk 0:02:45]}  Bd6 {[%clk 0:02:45]} 9. Qe2 {[%clk 0:02:44]}  Ne7 {[%clk 0:02:44]} 10. e5 {[%clk 0:02:42]}  Bc7 {[%clk 0:02:44]} 11. Nf3 {[%clk 0:02:38]}  c5 {[%clk 0:02:42]} 12. c3 {[%clk 0:02:35]}  h6 {[%clk 0:02:38]} 13. h4 {[%clk 0:02:28]}  Nc6 {[%clk 0:02:35]} 14. Bf4 {[%clk 0:02:22]}  Rb8 {[%clk 0:02:22]} 15. h5 {[%clk 0:02:10]}  c4 {[%clk 0:02:10]} 16. Bb1 {[%clk 0:02:05]}  Rb7 {[%clk 0:02:01]} 17. a3 {[%clk 0:01:35]}  Qb8 {[%clk 0:02:00]} 18. Ra2 {[%clk 0:01:33]}  d4 {[%clk 0:01:49]} 19. cxd4 {[%clk 0:01:24]}  c3 {[%clk 0:01:48]} 20. O-O {[%clk 0:01:24]}  cxb2 {[%clk 0:01:45]} 21. Bd3 {[%clk 0:01:10]}  b1=Q {[%clk 0:01:42]} 22. Bxb1 {[%clk 0:01:08]}  Rxb1 {[%clk 0:01:43]} 23. Rxb1 {[%clk 0:01:05]}  Qxb1+ {[%clk 0:01:44]} 24. Kh2 {[%clk 0:01:05]}  Qf5 {[%clk 0:01:37]} 25. Bg3 {[%clk 0:01:04]}  Qxh5+ {[%clk 0:01:35]} 26. Kg1 {[%clk 0:01:04]}  Ne7 {[%clk 0:01:33]} 27. Rc2 {[%clk 0:01:02]}  Bb6 {[%clk 0:01:32]} 28. Qa6 {[%clk 0:00:58]}  O-O {[%clk 0:01:31]} 29. a4 {[%clk 0:00:58]}  Nc6 {[%clk 0:01:18]} 30. Qb7 {[%clk 0:00:56]}  Nxd4 {[%clk 0:00:53]} 31. Nxd4 {[%clk 0:00:49]}  Qd1+ {[%clk 0:00:53]} 32. Kh2 {[%clk 0:00:40]}  Qxd4 {[%clk 0:00:53]} 0-1

[Event "November 21 Early 2023"]
[Site "https://www.chess.com"]
[Date "2023.11.21"]
[Round "9"]
[White "Nagy, Gabor"]
[Black "Ter-Sahakyan, Samvel"]
[Result "1/2-1/2"]
[Board "25"]
[TimeControl "180+1"]
[WhiteFideId "737119"]
[BlackFideId "13302531"]
[WhiteElo "2505"]
[BlackElo "2556"]
[WhiteTeam "HUN"]
[BlackTeam "ARM"]
[WhiteClock "0:00:09"]
[BlackClock "0:00:02"]

1. d4 {[%clk 0:03:00]}  Nf6 {[%clk 0:02:59]} 2. Nc3 {[%clk 0:03:01]}  d5 {[%clk 0:02:58]} 3. Bf4 {[%clk 0:03:02]}  c5 {[%clk 0:02:58]} 4. e4 {[%clk 0:03:00]}  Nxe4 {[%clk 0:02:57]} 5. Nxe4 {[%clk 0:03:00]}  dxe4 {[%clk 0:02:58]} 6. dxc5 {[%clk 0:03:00]}  Nd7 {[%clk 0:02:58]} 7. Qd5 {[%clk 0:02:52]}  e6 {[%clk 0:02:36]} 8. Qxe4 {[%clk 0:02:51]}  Nxc5 {[%clk 0:02:37]} 9. Qe3 {[%clk 0:02:49]}  a6 {[%clk 0:02:15]} 10. Nf3 {[%clk 0:02:47]}  Be7 {[%clk 0:02:14]} 11. Be2 {[%clk 0:02:45]}  O-O {[%clk 0:02:13]} 12. O-O {[%clk 0:02:46]}  b5 {[%clk 0:02:09]} 13. Rfd1 {[%clk 0:02:44]}  Qb6 {[%clk 0:02:05]} 14. Ne5 {[%clk 0:02:29]}  Bb7 {[%clk 0:01:46]} 15. Bf3 {[%clk 0:02:21]}  Bxf3 {[%clk 0:01:29]} 16. Qxf3 {[%clk 0:02:22]}  Bf6 {[%clk 0:00:47]} 17. c3 {[%clk 0:02:13]}  Rad8 {[%clk 0:00:43]} 18. Nc6 {[%clk 0:02:10]}  Rxd1+ {[%clk 0:00:42]} 19. Rxd1 {[%clk 0:02:11]}  Na4 {[%clk 0:00:41]} 20. Be3 {[%clk 0:01:58]}  Qc7 {[%clk 0:00:40]} 21. Rd2 {[%clk 0:01:53]}  Rc8 {[%clk 0:00:38]} 22. Nd4 {[%clk 0:01:41]}  b4 {[%clk 0:00:38]} 23. cxb4 {[%clk 0:01:38]}  Qc1+ {[%clk 0:00:33]} 24. Rd1 {[%clk 0:01:37]}  Qxb2 {[%clk 0:00:33]} 25. Qb7 {[%clk 0:01:31]}  Rf8 {[%clk 0:00:32]} 26. Qxa6 {[%clk 0:01:28]}  Nc3 {[%clk 0:00:32]} 27. Re1 {[%clk 0:01:21]}  Nxa2 {[%clk 0:00:29]} 28. Nf3 {[%clk 0:00:41]}  Nxb4 {[%clk 0:00:28]} 29. Qb5 {[%clk 0:00:37]}  Nd5 {[%clk 0:00:27]} 30. Qxb2 {[%clk 0:00:37]}  Bxb2 {[%clk 0:00:28]} 31. Bd4 {[%clk 0:00:37]}  Bxd4 {[%clk 0:00:25]} 32. Nxd4 {[%clk 0:00:38]}  Rc8 {[%clk 0:00:25]} 33. g3 {[%clk 0:00:39]}  g5 {[%clk 0:00:24]} 34. Nf3 {[%clk 0:00:38]}  h6 {[%clk 0:00:23]} 35. h4 {[%clk 0:00:39]}  g4 {[%clk 0:00:19]} 36. Ne5 {[%clk 0:00:39]}  h5 {[%clk 0:00:20]} 37. Ra1 {[%clk 0:00:39]}  Kg7 {[%clk 0:00:18]} 38. Kg2 {[%clk 0:00:36]}  Rc7 {[%clk 0:00:17]} 39. Ra2 {[%clk 0:00:36]}  Kf6 {[%clk 0:00:16]} 40. Nd3 {[%clk 0:00:35]}  Rc3 {[%clk 0:00:16]} 41. Rd2 {[%clk 0:00:32]}  Kf5 {[%clk 0:00:16]} 42. Ne1 {[%clk 0:00:27]}  f6 {[%clk 0:00:12]} 43. Nc2 {[%clk 0:00:26]}  Kg6 {[%clk 0:00:10]} 44. Nd4 {[%clk 0:00:26]}  e5 {[%clk 0:00:10]} 45. Ne6 {[%clk 0:00:23]}  Nb4 {[%clk 0:00:05]} 46. Rd7 {[%clk 0:00:21]}  Kf5 {[%clk 0:00:02]} 47. Ng7+ {[%clk 0:00:21]}  Kg6 {[%clk 0:00:03]} 48. Ne6 {[%clk 0:00:18]}  Rd3 {[%clk 0:00:03]} 49. Nf8+ {[%clk 0:00:17]}  Kf5 {[%clk 0:00:03]} 50. Rh7 {[%clk 0:00:18]}  Rd2 {[%clk 0:00:03]} 51. Rxh5+ {[%clk 0:00:18]}  Ke4 {[%clk 0:00:03]} 52. Nh7 {[%clk 0:00:18]}  Nd3 {[%clk 0:00:02]} 53. Nxf6+ {[%clk 0:00:18]}  Kd4 {[%clk 0:00:02]} 54. Nxg4 {[%clk 0:00:18]}  e4 {[%clk 0:00:02]} 55. Rf5 {[%clk 0:00:18]}  Ne1+ {[%clk 0:00:02]} 56. Kh3 {[%clk 0:00:17]}  Nf3 {[%clk 0:00:02]} 57. h5 {[%clk 0:00:15]}  Rd1 {[%clk 0:00:03]} 58. Rd5+ {[%clk 0:00:08]}  Kxd5 {[%clk 0:00:01]} 59. Ne3+ {[%clk 0:00:08]}  Ke5 {[%clk 0:00:02]} 60. Nxd1 {[%clk 0:00:09]}  Kf5 {[%clk 0:00:02]} 61. Ne3+ {[%clk 0:00:09]}  Kg5 {[%clk 0:00:03]} 62. g4 {[%clk 0:00:09]}  Nd4 {[%clk 0:00:03]} 63. Kg3 {[%clk 0:00:09]}  Ne2+ {[%clk 0:00:03]} 64. Kg2 {[%clk 0:00:10]}  Nf4+ {[%clk 0:00:04]} 65. Kg3 {[%clk 0:00:11]}  Ne2+ {[%clk 0:00:04]} 66. Kh2 {[%clk 0:00:11]}  Nf4 {[%clk 0:00:04]} 67. Ng2 {[%clk 0:00:11]}  Nd3 {[%clk 0:00:02]} 68. Kg3 {[%clk 0:00:11]}  Ne5 {[%clk 0:00:02]} 69. Ne1 {[%clk 0:00:11]}  Nxg4 {[%clk 0:00:02]} 70. f3 {[%clk 0:00:09]}  exf3 {[%clk 0:00:02]} 71. Nxf3+ {[%clk 0:00:09]}  Kxh5 {[%clk 0:00:02]} 1/2-1/2

[Event "November 21 Early 2023"]
[Site "https://www.chess.com"]
[Date "2023.11.21"]
[Round "9"]
[White "Csonka, Balazs"]
[Black "Sjugirov, Sanan"]
[Result "1-0"]
[Board "28"]
[TimeControl "180+1"]
[WhiteFideId "742910"]
[BlackFideId "4189302"]
[WhiteElo "2399"]
[BlackElo "2569"]
[WhiteTeam "HUN"]
[BlackTeam "HUN"]
[WhiteClock "0:00:04"]
[BlackClock "0:00:03"]

1. d4 {[%clk 0:03:00]}  Nf6 {[%clk 0:02:55]} 2. c4 {[%clk 0:02:59]}  e6 {[%clk 0:02:55]} 3. Nf3 {[%clk 0:02:59]}  Bb4+ {[%clk 0:02:55]} 4. Bd2 {[%clk 0:02:57]}  c5 {[%clk 0:02:56]} 5. Bxb4 {[%clk 0:02:54]}  cxb4 {[%clk 0:02:57]} 6. a3 {[%clk 0:02:53]}  bxa3 {[%clk 0:02:56]} 7. Rxa3 {[%clk 0:02:53]}  O-O {[%clk 0:02:56]} 8. Nc3 {[%clk 0:02:52]}  Nc6 {[%clk 0:02:47]} 9. e4 {[%clk 0:02:29]}  d6 {[%clk 0:02:47]} 10. Be2 {[%clk 0:02:24]}  e5 {[%clk 0:02:46]} 11. d5 {[%clk 0:02:21]}  Nb4 {[%clk 0:02:44]} 12. O-O {[%clk 0:02:08]}  a5 {[%clk 0:02:43]} 13. Qd2 {[%clk 0:01:55]}  b6 {[%clk 0:02:41]} 14. Ne1 {[%clk 0:01:51]}  Nd7 {[%clk 0:02:37]} 15. Nd3 {[%clk 0:01:37]}  Nxd3 {[%clk 0:02:37]} 16. Bxd3 {[%clk 0:01:38]}  Rb8 {[%clk 0:02:28]} 17. Na2 {[%clk 0:01:32]}  Nc5 {[%clk 0:02:27]} 18. b4 {[%clk 0:01:31]}  axb4 {[%clk 0:02:28]} 19. Nxb4 {[%clk 0:01:31]}  Bd7 {[%clk 0:02:28]} 20. Rfa1 {[%clk 0:01:29]}  Qh4 {[%clk 0:02:16]} 21. f3 {[%clk 0:01:00]}  f5 {[%clk 0:02:11]} 22. Qe3 {[%clk 0:00:49]}  fxe4 {[%clk 0:02:07]} 23. Bxe4 {[%clk 0:00:44]}  b5 {[%clk 0:02:03]} 24. cxb5 {[%clk 0:00:28]}  Rxb5 {[%clk 0:01:59]} 25. Nc6 {[%clk 0:00:29]}  Rb2 {[%clk 0:01:48]} 26. R3a2 {[%clk 0:00:19]}  Rb3 {[%clk 0:01:42]} 27. Qe1 {[%clk 0:00:18]}  Qg5 {[%clk 0:01:36]} 28. Ra7 {[%clk 0:00:12]}  Rb2 {[%clk 0:01:31]} 29. Qg3 {[%clk 0:00:11]}  Qe3+ {[%clk 0:00:32]} 30. Kh1 {[%clk 0:00:11]}  Nxe4 {[%clk 0:00:27]} 31. fxe4 {[%clk 0:00:12]}  Qe2 {[%clk 0:00:25]} 32. h3 {[%clk 0:00:04]}  Rf1+ {[%clk 0:00:07]} 33. Rxf1 {[%clk 0:00:05]}  Qxf1+ {[%clk 0:00:08]} 34. Kh2 {[%clk 0:00:05]}  Rb1 {[%clk 0:00:09]} 35. Ra8+ {[%clk 0:00:05]}  Kf7 {[%clk 0:00:09]} 36. Nd8+ {[%clk 0:00:05]}  Kf6 {[%clk 0:00:07]} 37. Qh4+ {[%clk 0:00:06]}  Kg6 {[%clk 0:00:07]} 38. Qg3+ {[%clk 0:00:04]}  Kh5 {[%clk 0:00:07]} 39. Qe3 {[%clk 0:00:02]}  Qh1+ {[%clk 0:00:05]} 40. Kg3 {[%clk 0:00:03]}  Qe1+ {[%clk 0:00:04]} 41. Qxe1 {[%clk 0:00:03]}  Rxe1 {[%clk 0:00:05]} 42. Ra7 {[%clk 0:00:04]}  Bb5 {[%clk 0:00:04]} 43. Rxg7 {[%clk 0:00:03]}  Rxe4 {[%clk 0:00:03]} 44. Nf7 {[%clk 0:00:04]}  Rd4 {[%clk 0:00:03]} 45. Rg5# {[%clk 0:00:04]} 1-0

[Event "November 21 Early 2023"]
[Site "https://www.chess.com"]
[Date "2023.11.21"]
[Round "9"]
[White "Shuvalova, Polina"]
[Black "Gokerkan, Cem Kaan"]
[Result "1-0"]
[Board "30"]
[TimeControl "180+1"]
[WhiteFideId "24171760"]
[BlackFideId "6336760"]
[WhiteElo "2342"]
[BlackElo "2365"]
[WhiteTeam "RUS"]
[BlackTeam "TUR"]
[WhiteClock "0:00:08"]
[BlackClock "0:00:16"]

1. e4 {[%clk 0:03:00]}  e5 {[%clk 0:02:58]} 2. Nf3 {[%clk 0:03:00]}  Nf6 {[%clk 0:02:59]} 3. Nc3 {[%clk 0:03:01]}  d5 {[%clk 0:02:54]} 4. exd5 {[%clk 0:02:51]}  e4 {[%clk 0:02:54]} 5. Ne5 {[%clk 0:02:45]}  Bd6 {[%clk 0:02:51]} 6. Bb5+ {[%clk 0:02:38]}  c6 {[%clk 0:02:44]} 7. dxc6 {[%clk 0:02:35]}  O-O {[%clk 0:02:40]} 8. cxb7 {[%clk 0:02:09]}  Bxb7 {[%clk 0:02:39]} 9. Nc4 {[%clk 0:02:09]}  Bc7 {[%clk 0:02:32]} 10. Ne3 {[%clk 0:02:09]}  Nbd7 {[%clk 0:02:18]} 11. b3 {[%clk 0:01:51]}  Ne5 {[%clk 0:02:07]} 12. Bb2 {[%clk 0:01:49]}  a6 {[%clk 0:02:08]} 13. Be2 {[%clk 0:01:45]}  a5 {[%clk 0:02:08]} 14. Bb5 {[%clk 0:01:39]}  Qc8 {[%clk 0:01:53]} 15. h3 {[%clk 0:01:36]}  Qe6 {[%clk 0:01:47]} 16. Qe2 {[%clk 0:01:32]}  Rac8 {[%clk 0:01:38]} 17. O-O-O {[%clk 0:01:27]}  Bd6 {[%clk 0:01:28]} 18. Kb1 {[%clk 0:01:24]}  Bb4 {[%clk 0:01:23]} 19. a3 {[%clk 0:01:12]}  Be7 {[%clk 0:01:24]} 20. a4 {[%clk 0:01:12]}  Nc6 {[%clk 0:01:23]} 21. Bc4 {[%clk 0:01:10]}  Qd7 {[%clk 0:01:21]} 22. Ncd5 {[%clk 0:01:08]}  Nxd5 {[%clk 0:01:07]} 23. Nxd5 {[%clk 0:01:08]}  Bc5 {[%clk 0:01:05]} 24. Rhe1 {[%clk 0:00:22]}  Rfe8 {[%clk 0:01:05]} 25. Bc3 {[%clk 0:00:18]}  Nd4 {[%clk 0:01:00]} 26. Qg4 {[%clk 0:00:14]}  Qd6 {[%clk 0:00:41]} 27. Rxe4 {[%clk 0:00:09]}  Bxd5 {[%clk 0:00:18]} 28. Rxe8+ {[%clk 0:00:08]}  Rxe8 {[%clk 0:00:18]} 29. Bxd4 {[%clk 0:00:09]}  Bxc4 {[%clk 0:00:16]} 30. Qxg7# {[%clk 0:00:08]} 1-0

[Event "November 21 Early 2023"]
[Site "https://www.chess.com"]
[Date "2023.11.21"]
[Round "9"]
[White "Volkov, Maksim"]
[Black "Sychev, Klementy"]
[Result "0-1"]
[Board "31"]
[TimeControl "180+1"]
[WhiteFideId "54123070"]
[BlackFideId "4114060"]
[WhiteElo "2293"]
[BlackElo "2583"]
[WhiteTeam "RUS"]
[BlackTeam "FID"]
[WhiteClock "0:00:53"]
[BlackClock "0:00:18"]

1. d4 {[%clk 0:03:00]}  Nf6 {[%clk 0:02:59]} 2. c4 {[%clk 0:02:58]}  g6 {[%clk 0:03:00]} 3. g3 {[%clk 0:02:58]}  c5 {[%clk 0:02:57]} 4. d5 {[%clk 0:02:57]}  d6 {[%clk 0:02:50]} 5. Nc3 {[%clk 0:02:56]}  Bg7 {[%clk 0:02:48]} 6. Bg2 {[%clk 0:02:56]}  O-O {[%clk 0:02:49]} 7. Nf3 {[%clk 0:02:55]}  e6 {[%clk 0:02:49]} 8. O-O {[%clk 0:02:53]}  exd5 {[%clk 0:02:49]} 9. cxd5 {[%clk 0:02:54]}  Re8 {[%clk 0:02:49]} 10. Bf4 {[%clk 0:02:54]}  Bf5 {[%clk 0:02:46]} 11. Nh4 {[%clk 0:02:53]}  Bg4 {[%clk 0:02:43]} 12. Qd2 {[%clk 0:02:50]}  b5 {[%clk 0:02:07]} 13. Rfe1 {[%clk 0:02:32]}  b4 {[%clk 0:02:03]} 14. Na4 {[%clk 0:02:10]}  Nh5 {[%clk 0:01:52]} 15. Bg5 {[%clk 0:01:51]}  Qa5 {[%clk 0:01:50]} 16. Qc2 {[%clk 0:01:50]}  Bd7 {[%clk 0:01:14]} 17. b3 {[%clk 0:01:43]}  Bxa4 {[%clk 0:01:07]} 18. bxa4 {[%clk 0:01:42]}  Nd7 {[%clk 0:01:05]} 19. Rac1 {[%clk 0:01:38]}  Nb6 {[%clk 0:01:04]} 20. g4 {[%clk 0:01:24]}  Nf6 {[%clk 0:01:02]} 21. Bf4 {[%clk 0:01:23]}  Rad8 {[%clk 0:00:58]} 22. e4 {[%clk 0:01:20]}  Nxg4 {[%clk 0:00:56]} 23. Nf3 {[%clk 0:01:14]}  Nxa4 {[%clk 0:00:46]} 24. Bd2 {[%clk 0:01:10]}  Nc3 {[%clk 0:00:43]} 25. a3 {[%clk 0:01:07]}  Qxa3 {[%clk 0:00:39]} 26. Ra1 {[%clk 0:01:07]}  Ne2+ {[%clk 0:00:39]} 27. Rxe2 {[%clk 0:01:03]}  Qxa1+ {[%clk 0:00:37]} 28. Bf1 {[%clk 0:01:03]}  Rb8 {[%clk 0:00:28]} 29. Bf4 {[%clk 0:01:00]}  b3 {[%clk 0:00:27]} 30. Qd3 {[%clk 0:00:58]}  b2 {[%clk 0:00:26]} 31. Nd2 {[%clk 0:00:58]}  b1=Q {[%clk 0:00:21]} 32. Nxb1 {[%clk 0:00:59]}  Rxb1 {[%clk 0:00:22]} 33. Rc2 {[%clk 0:00:58]}  Ne5 {[%clk 0:00:19]} 34. Bxe5 {[%clk 0:00:55]}  Bxe5 {[%clk 0:00:19]} 35. Kg2 {[%clk 0:00:56]}  Rxf1 {[%clk 0:00:18]} 36. Qxf1 {[%clk 0:00:55]}  Qxf1+ {[%clk 0:00:18]} 37. Kxf1 {[%clk 0:00:56]}  a5 {[%clk 0:00:18]} 38. Ra2 {[%clk 0:00:57]}  Ra8 {[%clk 0:00:18]} 39. Ra4 {[%clk 0:00:58]}  Bxh2 {[%clk 0:00:18]} 40. Rxa5 {[%clk 0:00:53]}  Rxa5 {[%clk 0:00:18]} 0-1

[Event "November 21 Early 2023"]
[Site "https://www.chess.com"]
[Date "2023.11.21"]
[Round "9"]
[White "Tristan, Leonardo"]
[Black "Galaktionov, Artem"]
[Result "1-0"]
[Board "32"]
[TimeControl "180+1"]
[WhiteFideId "113816"]
[BlackFideId "24175471"]
[WhiteElo "2483"]
[BlackElo "2367"]
[WhiteTeam "ARG"]
[BlackTeam "RUS"]
[WhiteClock "0:00:56"]
[BlackClock "0:02:15"]

1. d4 {[%clk 0:03:00]}  c6 {[%clk 0:02:55]} 2. Nf3 {[%clk 0:02:59]}  g6 {[%clk 0:02:56]} 3. e4 {[%clk 0:02:57]}  Bg7 {[%clk 0:02:56]} 4. Nc3 {[%clk 0:02:58]}  d6 {[%clk 0:02:56]} 5. a4 {[%clk 0:02:56]}  Nd7 {[%clk 0:02:56]} 6. Be2 {[%clk 0:02:55]}  e5 {[%clk 0:02:56]} 7. O-O {[%clk 0:02:54]}  Ngf6 {[%clk 0:02:56]} 8. h3 {[%clk 0:02:49]}  O-O {[%clk 0:02:56]} 9. dxe5 {[%clk 0:02:48]}  dxe5 {[%clk 0:02:57]} 10. Be3 {[%clk 0:02:48]}  Qe7 {[%clk 0:02:57]} 11. a5 {[%clk 0:02:40]}  Nc5 {[%clk 0:02:57]} 12. Nd2 {[%clk 0:02:39]}  Rd8 {[%clk 0:02:57]} 13. Qc1 {[%clk 0:02:34]}  Ne6 {[%clk 0:02:57]} 14. Rd1 {[%clk 0:02:23]}  Nd4 {[%clk 0:02:57]} 15. Bf1 {[%clk 0:02:24]}  Be6 {[%clk 0:02:57]} 16. Ne2 {[%clk 0:02:16]}  Nh5 {[%clk 0:02:56]} 17. c3 {[%clk 0:02:12]}  Nb3 {[%clk 0:02:47]} 18. Nxb3 {[%clk 0:02:11]}  Bxb3 {[%clk 0:02:48]} 19. Rxd8+ {[%clk 0:02:10]}  Rxd8 {[%clk 0:02:49]} 20. Qe1 {[%clk 0:01:45]}  a6 {[%clk 0:02:49]} 21. Nc1 {[%clk 0:01:34]}  Be6 {[%clk 0:02:49]} 22. Nd3 {[%clk 0:01:31]}  Bc4 {[%clk 0:02:47]} 23. Nc5 {[%clk 0:01:27]}  Bxf1 {[%clk 0:02:46]} 24. Qxf1 {[%clk 0:01:28]}  Nf4 {[%clk 0:02:47]} 25. Rd1 {[%clk 0:01:26]}  Rxd1 {[%clk 0:02:39]} 26. Qxd1 {[%clk 0:01:26]}  Bf8 {[%clk 0:02:37]} 27. b4 {[%clk 0:01:17]}  Ne6 {[%clk 0:02:31]} 28. Nxe6 {[%clk 0:01:08]}  Qxe6 {[%clk 0:02:32]} 29. Qd8 {[%clk 0:01:08]}  Qe7 {[%clk 0:02:32]} 30. Qc8 {[%clk 0:01:08]}  f6 {[%clk 0:02:21]} 31. Bc5 {[%clk 0:01:07]}  Qf7 {[%clk 0:02:21]} 32. Bxf8 {[%clk 0:00:59]}  Qxf8 {[%clk 0:02:22]} 33. Qxb7 {[%clk 0:00:59]}  Qd6 {[%clk 0:02:22]} 34. Qxa6 {[%clk 0:00:59]}  Qd1+ {[%clk 0:02:22]} 35. Qf1 {[%clk 0:00:57]}  Qb3 {[%clk 0:02:15]} 36. Qa1 {[%clk 0:00:56]} 1-0